Workbook

Sheet Sheet1
B1: Graphs in Biangular Coordinates
B3: This graphing utility produces the graph
B4: of any function f =f(q) involving the angles q and f
C5: in the biangular coordinate system
B6: based on two poles along the horizontal axis.
A9: The first pole is at the origin.
A10: How far to the right is the second pole? | D10: =E10 -> 4 | E10: 4 | F10: 47
C11: (1-6)
A14: Enter the function in terms of Q: f = f(Q) = | E14: SIN(6*Q)
A17: Now enter the interval for q (in radians):
C18: Minimum angle a = | D18: -3.14
C19: Maximum angle b = | D19: 3.14 | I19: Now trace along the biangular curve:
I20: q = | J20: =Sheet1!D18+K20*Sheet2!B12 -> -2.53 | K20: 49
I21: f = | J21: =LOOKUP(J20,Sheet2!C2:C503,Sheet2!D2:D503) -> -0.53
I22: x = | J22: =LOOKUP(J20,Sheet2!C3:C504,Sheet2!G3:G504) -> -18.14947328
I23: y = | J23: =LOOKUP(J20,Sheet2!C3:C504,Sheet2!H3:H504) -> -12.84245251
A30: Click each item below for suggestions and investigations
C31: Item 1
C32: Item 2
C33: Item 3
C34: Item 4 | I34: In the linear function f = mq + b:
C35: Item 5 | J35: What is the slope m (- 3 to 3)? | L35: =(M35-30)/10 -> -1 | M35: 20 | N35: 47
C36: Item 6
C37: Item 7 | J37: What is the intercept b (- 5 to 5)? | L37: =M37-5 -> 3 | M37: 8 | N37: 13
C38: Item 8
C39: Item 9
A42: To access/download all the DIGMath Apps for Calculus
A43: Click this link: | C43: DIGMath for Calculus
A45: Created by: Sheldon P. Gordon
A46: Farmingdale State College
A47: Development of this module was supported by the
A48: NSF's Division of Undergraduate Education
A49: under grants DUE-0310123 and DUE-0442160.

Sheet Sheet2
C1: q | D1: f | E1: x = f(t) | F1: y = g(t) | G1: plot x | H1: plot y | I1: Tracing point
C3: =a -> -3.14 | D3: =SIN(6*Q) -> 0.009555776105 | E3: =D*SIN(D3)*COS(C3)/SIN(C3+D3) -> 3.428578469 | F3: =D*SIN(C3)*SIN(D3)/SIN(C3+D3) -> 0.005460542423 | G3: =E3 -> 3.428578469 | H3: =F3 -> 0.005460542423
C4: =C3+dt -> -3.12746507 | D4: 0.08466402946 | E4: 3.429124178 | F4: 0.04844846224 | G4: =IF(OR(ABS(E4)>xMax,ABS(F4)>yMax),G3,E4) -> 3.429124178 | H4: =IF(OR(ABS(E4)>xMax,ABS(F4)>yMax),H3,F4) -> 0.04844846224 | I4: =Sheet1!J22 -> -18.14947328 | J4: =Sheet1!J23 -> -12.84245251
C5: -3.11493014 | D5: 0.159293608 | E5: 3.430529087 | F5: 0.09148820973 | G5: 3.430529087 | H5: 0.09148820973
A6: a = | C6: -3.10239521 | D6: 0.23302257 | E6: 3.432763301 | F6: 0.1346245018 | G6: 3.432763301 | H6: 0.1346245018 | I6: 0 | J6: 0
A7: b = | C7: -3.089860279 | D7: 0.3054340654 | E7: 3.43577726 | F7: 0.1778996437 | G7: 3.43577726 | H7: 0.1778996437 | I7: 2 | J7: 0
C8: -3.077325349 | D8: 0.376118693 | E8: 3.439499932 | F8: 0.2213522221 | G8: 3.439499932 | H8: 0.2213522221
C9: -3.064790419 | D9: 0.444676815 | E9: 3.443836367 | F9: 0.2650156052 | G9: 3.443836367 | H9: 0.2650156052
C10: -3.052255489 | D10: 0.5107208165 | E10: 3.448664659 | F10: 0.3089161932 | G10: 3.448664659 | H10: 0.3089161932 | I10: 0 | J10: 0
C11: -3.039720559 | D11: 0.5738772968 | E11: 3.453832422 | F11: 0.3530713721 | G11: 3.453832422 | H11: 0.3530713721 | I11: 1.4 | J11: =3 -> 3
A12: delta t = | B12: =(Sheet1!D19-Sheet1!D18)/501 -> 0.01253493014 | C12: -3.027185629 | D12: 0.6337891809 | E12: 3.459152885 | F12: 0.3974871373 | G12: 3.459152885 | H12: 0.3974871373 | I12: 2 | J12: 0
C13: -3.014650699 | D13: 0.6901177381 | E13: 3.464400817 | F13: 0.4421553701 | G13: 3.464400817 | H13: 0.4421553701
C14: -3.002115768 | D14: 0.7425444971 | E14: 3.469308516 | F14: 0.4870507788 | G14: 3.469308516 | H14: 0.4870507788
A15: xMax = | B15: 50 | C15: -2.989580838 | D15: 0.7907730468 | E15: 3.473562172 | F15: 0.532127548 | G15: 3.473562172 | H15: 0.532127548
A16: yMax = | B16: 50 | C16: -2.977045908 | D16: 0.8345307117 | E16: 3.476798967 | F16: 0.5773157801 | G16: 3.476798967 | H16: 0.5773157801
C17: -2.964510978 | D17: 0.8735700942 | E17: 3.478605311 | F17: 0.6225178558 | G17: 3.478605311 | H17: 0.6225178558
C18: -2.951976048 | D18: 0.9076704727 | E18: 3.478516612 | F18: 0.6676048808 | G18: 3.478516612 | H18: 0.6676048808
C19: -2.939441118 | D19: 0.9366390501 | E19: 3.476018903 | F19: 0.7124134169 | G19: 3.476018903 | H19: 0.7124134169
C20: -2.926906188 | D20: 0.9603120434 | E20: 3.470552566 | F20: 0.7567427071 | G20: 3.470552566 | H20: 0.7567427071
C21: -2.914371257 | D21: 0.9785556098 | E21: 3.461518164 | F21: 0.8003525851 | G21: 3.461518164 | H21: 0.8003525851
C22: -2.901836327 | D22: 0.9912666036 | E22: 3.448284172 | F22: 0.8429622095 | G22: 3.448284172 | H22: 0.8429622095
C23: -2.889301397 | D23: 0.9983731592 | E23: 3.430196078 | F23: 0.8842496636 | G23: 3.430196078 | H23: 0.8842496636
C24: -2.876766467 | D24: 0.9998350973 | E24: 3.406586058 | F24: 0.9238523376 | G24: 3.406586058 | H24: 0.9238523376
C25: -2.864231537 | D25: 0.9956441526 | E25: 3.376782143 | F25: 0.9613678483 | G25: 3.376782143 | H25: 0.9613678483
C26: -2.851696607 | D26: 0.9858240198 | E26: 3.340115635 | F26: 0.9963550904 | G26: 3.340115635 | H26: 0.9963550904
C27: -2.839161677 | D27: 0.9704302201 | E27: 3.29592545 | F27: 1.02833485 | G27: 3.29592545 | H27: 1.02833485
C28: -2.826626747 | D28: 0.9495497873 | E28: 3.243558112 | F28: 1.056789284 | G28: 3.243558112 | H28: 1.056789284
C29: -2.814091816 | D29: 0.9233007754 | E29: 3.182362244 | F29: 1.081159447 | G29: 3.182362244 | H29: 1.081159447
C30: -2.801556886 | D30: 0.8918315915 | E30: 3.111676574 | F30: 1.100839981 | G30: 3.111676574 | H30: 1.100839981
C31: -2.789021956 | D31: 0.8553201566 | E31: 3.030810562 | F31: 1.115169985 | G31: 3.030810562 | H31: 1.115169985
C32: -2.776487026 | D32: 0.8139728995 | E32: 2.939016781 | F32: 1.123418928 | G32: 2.939016781 | H32: 1.123418928
C33: -2.763952096 | D33: 0.7680235901 | E33: 2.83545389 | F33: 1.124766281 | G33: 2.83545389 | H33: 1.124766281
C34: -2.751417166 | D34: 0.7177320172 | E34: 2.719138497 | F34: 1.118273087 | G34: 2.719138497 | H34: 1.118273087
C35: -2.738882236 | D35: 0.66338252 | E35: 2.588883182 | F35: 1.102843028 | G35: 2.588883182 | H35: 1.102843028
C36: -2.726347305 | D36: 0.6052823807 | E36: 2.443216295 | F36: 1.077169424 | G36: 2.443216295 | H36: 1.077169424
C37: -2.713812375 | D37: 0.5437600866 | E37: 2.280276594 | F37: 1.039662808 | G37: 2.280276594 | H37: 1.039662808
C38: -2.701277445 | D38: 0.4791634735 | E38: 2.097671805 | F38: 0.9883509076 | G38: 2.097671805 | H38: 0.9883509076
C39: -2.688742515 | D39: 0.4118577586 | E39: 1.8922839 | F39: 0.9207382613 | G39: 1.8922839 | H39: 0.9207382613
C40: -2.676207585 | D40: 0.342223476 | E40: 1.659993617 | F40: 0.8336051619 | G40: 1.659993617 | H40: 0.8336051619
C41: -2.663672655 | D41: 0.2706543251 | E41: 1.395279443 | F41: 0.722712816 | G41: 1.395279443 | H41: 0.722712816
C42: -2.651137725 | D42: 0.1975549447 | E42: 1.090615951 | F42: 0.5823590854 | G42: 1.090615951 | H42: 0.5823590854
C43: -2.638602794 | D43: 0.1233386251 | E43: 0.7355410103 | F43: 0.4046880622 | G43: 0.7355410103 | H43: 0.4046880622
C44: -2.626067864 | D44: 0.04842497177 | E44: 0.3151556081 | F44: 0.1785780947 | G44: 0.3151556081 | H44: 0.1785780947
C45: -2.613532934 | D45: -0.02676246745 | E45: -0.192393222 | F45: -0.1122255815 | G45: -0.192393222 | H45: -0.1122255815
C46: -2.600998004 | D46: -0.1017985966 | E46: -0.8203530945 | F46: -0.4924072879 | G46: -0.8203530945 | H46: -0.4924072879
C47: -2.588463074 | D47: -0.1762591753 | E47: -1.621694182 | F47: -1.001265592 | G47: -1.621694182 | H47: -1.001265592
C48: -2.575928144 | D48: -0.2497232172 | E48: -2.685966985 | F48: -1.705236578 | G48: -2.685966985 | H48: -1.705236578
C49: -2.563393214 | D49: -0.3217753702 | E49: -4.176969111 | F49: -2.725881837 | G49: -4.176969111 | H49: -2.725881837
C50: -2.550858283 | D50: -0.3920082647 | E50: -6.428924498 | F50: -4.31136381 | G50: -6.428924498 | H50: -4.31136381
C51: -2.538323353 | D51: -0.4600248169 | E51: -10.24420091 | F51: -7.057712084 | G51: -10.24420091 | H51: -7.057712084
C52: -2.525788423 | D52: -0.5254404737 | E52: -18.14947328 | F52: -12.84245251 | G52: -18.14947328 | H52: -12.84245251
C53: -2.513253493 | D53: -0.5878853872 | E53: -44.37644424 | F53: -32.24277273 | G53: -44.37644424 | H53: -32.24277273
C54: -2.500718563 | D54: -0.6470065054 | E54: 315.1724285 | F54: 235.0881691 | G54: -44.37644424 | H54: -32.24277273
C55: -2.488183633 | D55: -0.7024695683 | E55: 41.84407147 | F55: 32.03571764 | G55: 41.84407147 | H55: 32.03571764
C56: -2.475648703 | D56: -0.753960998 | E56: 24.49371373 | F56: 19.2440591 | G56: 24.49371373 | H56: 19.2440591
C57: -2.463113772 | D57: -0.8011896716 | E57: 18.27166403 | F57: 14.72967702 | G57: 18.27166403 | H57: 14.72967702
C58: -2.450578842 | D58: -0.8438885668 | E58: 15.12524261 | F58: 12.50920987 | G58: 15.12524261 | H58: 12.50920987
C59: -2.438043912 | D59: -0.881816272 | E59: 13.27753963 | F59: 11.26430597 | G59: 13.27753963 | H59: 11.26430597
C60: -2.425508982 | D60: -0.9147583509 | E60: 12.11497708 | F60: 10.54200028 | G60: 12.11497708 | H60: 10.54200028
C61: -2.412974052 | D61: -0.942528555 | E61: 11.37401598 | F61: 10.15054573 | G61: 11.37401598 | H61: 10.15054573
C62: -2.400439122 | D62: -0.9649698769 | E62: 10.92855691 | F62: 10.00189215 | G62: 10.92855691 | H62: 10.00189215
C63: -2.387904192 | D63: -0.9819554374 | E63: 10.71840804 | F63: 10.05933121 | G63: 10.71840804 | H63: 10.05933121
C64: -2.375369261 | D64: -0.9933892033 | E64: 10.72249303 | F64: 10.31897817 | G64: 10.72249303 | H64: 10.31897817
C65: -2.362834331 | D65: -0.9992065301 | E65: 10.95075357 | F65: 10.80628814 | G65: 10.95075357 | H65: 10.80628814
C66: -2.350299401 | D66: -0.9993745279 | E66: 11.44826779 | F66: 11.5840469 | G66: 11.44826779 | H66: 11.5840469
C67: -2.337764471 | D67: =SIN(6*Q) -> -0.9938922467 | E67: =D*SIN(D67)*COS(C67)/SIN(C67+D67) -> 12.3149874 | F67: =D*SIN(C67)*SIN(D67)/SIN(C67+D67) -> 12.77749469 | G67: 12.3149874 | H67: 12.77749469
C68: =C67+dt -> -2.325229541 | D68: -0.9827906824 | E68: 13.75947747 | F68: 14.63911975 | G68: =IF(OR(ABS(E68)>xMax,ABS(F68)>yMax),G67,E68) -> 13.75947747 | H68: =IF(OR(ABS(E68)>xMax,ABS(F68)>yMax),H67,F68) -> 14.63911975
C69: -2.312694611 | D69: -0.9661326011 | E69: 16.25343155 | F69: 17.73275998 | G69: 16.25343155 | H69: 17.73275998
C70: -2.300159681 | D70: -0.9440121847 | E70: 21.08314262 | F70: 23.58895852 | G70: 21.08314262 | H70: 23.58895852
C71: -2.28762475 | D71: -0.9165544977 | E71: 33.34093264 | F71: 38.2581738 | G71: 33.34093264 | H71: 38.2581738
C72: -2.27508982 | D72: -0.883914781 | E72: 115.0213753 | F72: 135.3742787 | G72: 33.34093264 | H72: 38.2581738
C73: -2.26255489 | D73: -0.8462775734 | E73: -58.33313209 | F73: -70.42539268 | G73: 33.34093264 | H73: 38.2581738
C74: -2.25001996 | D74: -0.8038556688 | E74: -20.65277589 | F74: -25.58005392 | G74: -20.65277589 | H74: -25.58005392
C75: -2.23748503 | D75: -0.7568889127 | E75: -11.57899916 | F75: -14.71510294 | G75: -11.57899916 | H75: -14.71510294
C76: -2.2249501 | D76: -0.7056428466 | E76: -7.536730905 | F76: -9.829072217 | G76: -7.536730905 | H76: -9.829072217
C77: -2.21241517 | D77: -0.6504072062 | E77: -5.26785819 | F77: -7.051423334 | G77: -5.26785819 | H77: -7.051423334
C78: -2.19988024 | D78: -0.5914942836 | E78: -3.825040597 | F78: -5.256251864 | G78: -3.825040597 | H78: -5.256251864
C79: -2.187345309 | D79: -0.5292371616 | E79: -2.832006415 | F79: -3.995991023 | G79: -2.832006415 | H79: -3.995991023
C80: -2.174810379 | D80: -0.4639878305 | E80: -2.109822022 | F80: -3.05750982 | G80: -2.109822022 | H80: -3.05750982
C81: -2.162275449 | D81: -0.396115198 | E81: -1.562658477 | F81: -2.326423252 | G81: -1.562658477 | H81: -2.326423252
C82: -2.149740519 | D82: -0.3260030033 | E82: -1.134654642 | F82: -1.735847084 | G82: -1.134654642 | H82: -1.735847084
C83: -2.137205589 | D83: -0.2540476478 | E83: -0.7911087575 | F83: -1.244049516 | G83: -0.7911087575 | H83: -1.244049516
C84: -2.124670659 | D84: -0.1806559539 | E84: -0.5093691423 | F84: -0.8236240285 | G84: -0.5093691423 | H84: -0.8236240285
C85: -2.112135729 | D85: -0.1062428646 | E85: -0.2740528857 | F85: -0.4558038831 | G85: -0.2740528857 | H85: -0.4558038831
C86: -2.099600798 | D86: -0.03122909777 | E86: -0.07437144403 | F86: -0.1272803238 | G86: -0.07437144403 | H86: -0.1272803238
C87: -2.087065868 | D87: 0.04396123261 | E87: 0.09744415177 | F87: 0.17167177 | G87: 0.09744415177 | H87: 0.17167177
C88: -2.074530938 | D88: 0.1189030143 | E88: 0.2471104266 | F88: 0.4483447652 | G88: 0.2471104266 | H88: 0.4483447652
C89: -2.061996008 | D89: 0.1931725403 | E89: 0.37890623 | F89: 0.7083284528 | G89: 0.37890623 | H89: 0.7083284528
C90: -2.049461078 | D90: 0.2663499045 | E90: 0.4960745372 | F90: 0.9559844262 | G90: 0.4960745372 | H90: 0.9559844262
C91: -2.036926148 | D91: 0.3380213755 | E91: 0.6010907421 | F91: 1.194758149 | G91: 0.6010907421 | H91: 1.194758149
C92: -2.024391218 | D92: 0.4077817361 | E92: 0.6958444614 | F92: 1.42738342 | G92: 0.6958444614 | H92: 1.42738342
C93: -2.011856287 | D93: 0.4752365741 | E93: 0.7817636378 | F93: 1.656012042 | G93: 0.7817636378 | H93: 1.656012042
C94: -1.999321357 | D94: 0.5400045124 | E94: 0.8598991753 | F94: 1.882288715 | G94: 0.8598991753 | H94: 1.882288715
C95: -1.986786427 | D95: 0.6017193649 | E95: 0.9309821443 | F95: 2.107383725 | G95: 0.9309821443 | H95: 2.107383725
C96: -1.974251497 | D96: 0.6600322072 | E96: 0.9954619718 | F96: 2.331991783 | G96: 0.9954619718 | H96: 2.331991783
C97: -1.961716567 | D97: 0.7146133495 | E97: 1.053532034 | F97: 2.556303459 | G97: 1.053532034 | H97: 2.556303459
C98: -1.949181637 | D98: 0.7651541999 | E98: 1.105148117 | F98: 2.779955592 | G98: 1.105148117 | H98: 2.779955592
C99: -1.936646707 | D99: 0.8113690098 | E99: 1.150044954 | F99: 3.001968635 | G99: 1.150044954 | H99: 3.001968635
C100: -1.924111776 | D100: 0.8529964892 | E100: 1.187756157 | F100: 3.220681832 | G100: 1.187756157 | H100: 3.220681832
C101: -1.911576846 | D101: 0.8898012841 | E101: 1.217642988 | F101: 3.433701157 | G101: 1.217642988 | H101: 3.433701157
C102: -1.899041916 | D102: 0.9215753069 | E102: 1.238937201 | F102: 3.637879097 | G102: 1.238937201 | H102: 3.637879097
C103: -1.886506986 | D103: 0.9481389133 | E103: 1.250801988 | F103: 3.829348199 | G103: 1.250801988 | H103: 3.829348199
C104: -1.873972056 | D104: 0.9693419173 | E104: 1.252412656 | F104: 4.003629825 | G104: 1.252412656 | H104: 4.003629825
C105: -1.861437126 | D105: 0.9850644413 | E105: 1.2430546 | F105: 4.155833469 | G105: 1.2430546 | H105: 4.155833469
C106: -1.848902196 | D106: 0.995217593 | E106: 1.222230994 | F106: 4.280948957 | G106: 1.222230994 | H106: 4.280948957
C107: -1.836367265 | D107: 0.9997439682 | E107: 1.189767253 | F107: 4.374214479 | G107: 1.189767253 | H107: 4.374214479
C108: -1.823832335 | D108: 0.9986179758 | E108: 1.145895682 | F108: 4.431521366 | G108: 1.145895682 | H108: 4.431521366
C109: -1.811297405 | D109: 0.9918459818 | E109: 1.091303521 | F109: 4.44979845 | G109: 1.091303521 | H109: 4.44979845
C110: -1.798762475 | D110: 0.9794662739 | E110: 1.027132112 | F110: 4.427312161 | G110: 1.027132112 | H110: 4.427312161
C111: -1.786227545 | D111: 0.9615488447 | E111: 0.954923592 | F111: 4.363828174 | G111: 0.954923592 | H111: 4.363828174
C112: -1.773692615 | D112: 0.9381949959 | E112: 0.8765221263 | F112: 4.260605722 | G112: 0.8765221263 | H112: 4.260605722
C113: -1.761157685 | D113: 0.909536766 | E113: 0.7939459128 | F113: 4.120229454 | G113: 0.7939459128 | H113: 4.120229454
C114: -1.748622754 | D114: 0.8757361833 | E114: 0.709251009 | F114: 3.946315377 | G114: 0.709251009 | H114: 3.946315377
C115: -1.736087824 | D115: 0.83698435 | E115: 0.624407358 | F115: 3.743147389 | G115: 0.624407358 | H115: 3.743147389
C116: -1.723552894 | D116: 0.7935003618 | E116: 0.5412020259 | F116: 3.515304774 | G116: 0.5412020259 | H116: 3.515304774
C117: -1.711017964 | D117: 0.7455300691 | E117: 0.4611770081 | F117: 3.267330755 | G117: 0.4611770081 | H117: 3.267330755
C118: -1.698483034 | D118: 0.6933446873 | E118: 0.3856015516 | F118: 3.003473709 | G118: 0.3856015516 | H118: 3.003473709
C119: -1.685948104 | D119: 0.6372392626 | E119: 0.3154735839 | F119: 2.727512955 | G119: 0.3154735839 | H119: 2.727512955
C120: -1.673413174 | D120: 0.5775310049 | E120: 0.2515421416 | F120: 2.442665096 | G120: 0.2515421416 | H120: 2.442665096
C121: -1.660878244 | D121: 0.5145574936 | E121: 0.1943423521 | F121: 2.151557101 | G121: 0.1943423521 | H121: 2.151557101
C122: -1.648343313 | D122: 0.4486747693 | E122: 0.1442357077 | F122: 1.856248398 | G122: 0.1442357077 | H122: 1.856248398
C123: -1.635808383 | D123: 0.3802553208 | E123: 0.1014502589 | F123: 1.558284654 | G123: 0.1014502589 | H123: 1.558284654
C124: -1.623273453 | D124: 0.3096859789 | E124: 0.06611727783 | F124: 1.258768896 | G124: 0.06611727783 | H124: 1.258768896
C125: -1.610738523 | D125: 0.2373657297 | E125: 0.0383025486 | F125: 0.9584394722 | G125: 0.0383025486 | H125: 0.9584394722
C126: -1.598203593 | D126: 0.1637034586 | E126: 0.0180315936 | F126: 0.6577481496 | G126: 0.0180315936 | H126: 0.6577481496
C127: -1.585668663 | D127: 0.08911563833 | E127: 0.005308846103 | F127: 0.3569348303 | G127: 0.005308846103 | H127: 0.3569348303
C128: -1.573133733 | D128: 0.01402397471 | E128: 0.0001311234128 | F128: 0.05609773764 | G128: 0.0001311234128 | H128: 0.05609773764
C129: -1.560598802 | D129: -0.06114697787 | E129: 0.002495832706 | F129: -0.2447403992 | G129: 0.002495832706 | H129: -0.2447403992
C130: -1.548063872 | D130: -0.1359722167 | E130: 0.01240425069 | F130: -0.5455686232 | G130: 0.01240425069 | H130: -0.5455686232
C131: -1.535528942 | D131: =SIN(6*Q) -> -0.2100286938 | E131: =D*SIN(D131)*COS(C131)/SIN(C131+D131) -> 0.02986003019 | F131: =D*SIN(C131)*SIN(D131)/SIN(C131+D131) -> -0.8463244321 | G131: 0.02986003019 | H131: -0.8463244321
C132: =C131+dt -> -1.522994012 | D132: -0.2828977074 | E132: 0.05486286272 | F132: -1.14682873 | G132: =IF(OR(ABS(E132)>xMax,ABS(F132)>yMax),G131,E132) -> 0.05486286272 | H132: =IF(OR(ABS(E132)>xMax,ABS(F132)>yMax),H131,F132) -> -1.14682873
C133: -1.510459082 | D133: -0.3541672697 | E133: 0.0873970183 | F133: -1.446717262 | G133: 0.0873970183 | H133: -1.446717262
C134: -1.497924152 | D134: -0.4234344357 | E134: 0.1274143486 | F134: -1.745367558 | G134: 0.1274143486 | H134: -1.745367558
C135: -1.485389222 | D135: -0.4903075816 | E135: 0.1748113449 | F135: -2.041821827 | G135: 0.1748113449 | H135: -2.041821827
C136: -1.472854291 | D136: -0.554408619 | E136: 0.2294000751 | F136: -2.334708352 | G136: 0.2294000751 | H136: -2.334708352
C137: -1.460319361 | D137: -0.6153751325 | E137: 0.2908733804 | F137: -2.622166799 | G137: 0.2908733804 | H137: -2.622166799
C138: -1.447784431 | D138: -0.6728624288 | E138: 0.3587656905 | F138: -2.901786491 | G138: 0.3587656905 | H138: -2.901786491
C139: -1.435249501 | D139: -0.7265454851 | E139: 0.4324122582 | F139: -3.170570597 | G139: 0.4324122582 | H139: -3.170570597
C140: -1.422714571 | D140: -0.7761207876 | E140: 0.5109114488 | F140: -3.424942645 | G140: 0.5109114488 | H140: -3.424942645
C141: -1.410179641 | D141: -0.8213080465 | E141: 0.593096682 | F141: -3.660813347 | G141: 0.593096682 | H141: -3.660813347
C142: -1.397644711 | D142: -0.8618517814 | E142: 0.6775261608 | F142: -3.873723638 | G142: 0.6775261608 | H142: -3.873723638
C143: -1.38510978 | D143: -0.8975227657 | E143: 0.7624988595 | F143: -4.05907234 | G143: 0.7624988595 | H143: -4.05907234
C144: -1.37257485 | D144: -0.928119322 | E144: 0.8461034958 | F144: -4.212423112 | G144: 0.8461034958 | H144: -4.212423112
C145: -1.36003992 | D145: -0.9534684632 | E145: 0.9263028359 | F145: -4.329866617 | G145: 0.9263028359 | H145: -4.329866617
C146: -1.34750499 | D146: -0.9734268698 | E146: 1.001048888 | F146: -4.408394127 | G146: 1.001048888 | H146: -4.408394127
C147: -1.33497006 | D147: -0.9878817008 | E147: 1.068416702 | F147: -4.446224636 | G147: 1.068416702 | H147: -4.446224636
C148: -1.32243513 | D148: -0.9967512311 | E148: 1.126737961 | F148: -4.44302563 | G148: 1.126737961 | H148: -4.44302563
C149: -1.3099002 | D149: -0.9999853142 | E149: 1.174712923 | F149: -4.399981791 | G149: 1.174712923 | H149: -4.399981791
C150: -1.297365269 | D150: -0.9975656651 | E150: 1.211482058 | F150: -4.319694101 | G150: 1.211482058 | H150: -4.319694101
C151: -1.284830339 | D151: -0.989505964 | E151: 1.236646593 | F151: -4.205926101 | G151: 1.236646593 | H151: -4.205926101
C152: -1.272295409 | D152: -0.975851779 | E152: 1.250237644 | F152: -4.063243634 | G152: 1.250237644 | H152: -4.063243634
C153: -1.259760479 | D153: -0.9566803083 | E153: 1.252643399 | F153: -3.89661032 | G153: 1.252643399 | H153: -3.89661032
C154: -1.247225549 | D154: -0.9320999439 | E154: 1.244509993 | F154: -3.71100012 | G154: 1.244509993 | H154: -3.71100012
C155: -1.234690619 | D155: -0.9022496587 | E155: 1.226633262 | F155: -3.511073675 | G155: 1.226633262 | H155: -3.511073675
C156: -1.222155689 | D156: -0.8672982206 | E156: 1.199855957 | F156: -3.300943705 | G156: 1.199855957 | H156: -3.300943705
C157: -1.209620758 | D157: -0.8274432386 | E157: 1.164980075 | F157: -3.084033733 | G157: 1.164980075 | H157: -3.084033733
C158: -1.197085828 | D158: -0.7829100454 | E158: 1.122698562 | F158: -2.863018815 | G158: 1.122698562 | H158: -2.863018815
C159: -1.184550898 | D159: -0.7339504235 | E159: 1.073546093 | F159: -2.639828335 | G159: 1.073546093 | H159: -2.639828335
C160: -1.172015968 | D160: -0.6808411815 | E160: 1.017865626 | F160: -2.415688627 | G160: 1.017865626 | H160: -2.415688627
C161: -1.159481038 | D161: -0.6238825892 | E161: 0.9557858133 | F161: -2.19118501 | G161: 0.9557858133 | H161: -2.19118501
C162: -1.146946108 | D162: -0.5633966801 | E162: 0.8872038273 | F162: -1.966326728 | G162: 0.8872038273 | H162: -1.966326728
C163: -1.134411178 | D163: -0.4997254302 | E163: 0.8117682306 | F163: -1.740602474 | G163: 0.8117682306 | H163: -1.740602474
C164: -1.121876248 | D164: -0.433228825 | E164: 0.7288566552 | F164: -1.51301759 | G164: 0.7288566552 | H164: -1.51301759
C165: -1.109341317 | D165: -0.3642828242 | E165: 0.6375429911 | F165: -1.282106161 | G165: 0.6375429911 | H165: -1.282106161
C166: -1.096806387 | D166: -0.2932772355 | E166: 0.5365481226 | F166: -1.045911787 | G166: 0.5365481226 | H166: -1.045911787
C167: -1.084271457 | D167: -0.2206135116 | E167: 0.4241666918 | F167: -0.8019296104 | G167: 0.4241666918 | H167: -0.8019296104
C168: -1.071736527 | D168: -0.1467024796 | E168: 0.2981594445 | F168: -0.5469989308 | G168: 0.2981594445 | H168: -0.5469989308
C169: -1.059201597 | D169: -0.07196201887 | E169: 0.1555956226 | F169: -0.2771296405 | G169: 0.1555956226 | H169: -0.2771296405
C170: -1.046666667 | D170: 0.003185301793 | E170: -0.007378772387 | F170: 0.01276475396 | G170: -0.007378772387 | H170: 0.01276475396
C171: -1.034131737 | D171: 0.07831461335 | E171: -0.1958858525 | F171: 0.3292726162 | G171: -0.1958858525 | H171: 0.3292726162
C172: -1.021596806 | D172: 0.1530011485 | E172: -0.4168389208 | F172: 0.6811044787 | G172: -0.4168389208 | H172: 0.6811044787
C173: -1.009061876 | D173: 0.2268226435 | E173: -0.6797562575 | F173: 1.08006104 | G173: -0.6797562575 | H173: 1.08006104
C174: -0.9965269461 | D174: 0.2993617252 | E174: -0.9980682247 | F174: 1.542588967 | G174: -0.9980682247 | H174: 1.542588967
C175: -0.983992016 | D175: 0.370208271 | E175: -1.391300384 | F175: 2.092378687 | G175: -1.391300384 | H175: 2.092378687
C176: -0.9714570858 | D176: 0.4389617276 | E176: -1.888897645 | F176: 2.76491257 | G176: -1.888897645 | H176: 2.76491257
C177: -0.9589221557 | D177: 0.5052333757 | E177: -2.537327341 | F177: 3.615908805 | G177: -2.537327341 | H177: 3.615908805
C178: -0.9463872255 | D178: 0.5686485276 | E178: -3.414278239 | F178: 4.738194517 | G178: -3.414278239 | H178: 4.738194517
C179: -0.9338522954 | D179: 0.6288486459 | E179: -4.659862583 | F179: 6.298775159 | G179: -4.659862583 | H179: 6.298775159
C180: -0.9213173653 | D180: 0.68549337 | E180: -6.554471476 | F180: 8.631316697 | G180: -6.554471476 | H180: 8.631316697
C181: -0.9087824351 | D181: 0.7382624414 | E181: -9.751619328 | F181: 12.51271338 | G181: -9.751619328 | H181: 12.51271338
C182: -0.896247505 | D182: 0.7868575132 | E182: -16.20430839 | F182: 20.26336493 | G182: -16.20430839 | H182: 20.26336493
C183: -0.8837125749 | D183: 0.8310038381 | E183: -35.5694743 | F183: 43.35387359 | G183: -35.5694743 | H183: 43.35387359
C184: -0.8711776447 | D184: 0.8704518208 | E184: -2713.379326 | F184: 3223.931629 | G184: -35.5694743 | H184: 43.35387359
C185: -0.8586427146 | D185: 0.9049784298 | E185: 44.37845948 | F185: -51.40677923 | G185: -35.5694743 | H185: 43.35387359
C186: -0.8461077844 | D186: 0.9343884579 | E186: 24.18752988 | F186: -27.31827501 | G186: 24.18752988 | H186: -27.31827501
C187: -0.8335728543 | D187: 0.9585156263 | E187: 17.65769032 | F187: -19.44656021 | G187: 17.65769032 | H187: -19.44656021
C188: -0.8210379242 | D188: 0.9772235245 | E188: 14.52629425 | F188: -15.60045938 | G188: 14.52629425 | H188: -15.60045938
C189: -0.808502994 | D189: 0.9904063814 | E189: 12.76931676 | F189: -13.37344843 | G189: 12.76931676 | H189: -13.37344843
C190: -0.7959680639 | D190: 0.9979896636 | E190: 11.72042427 | F190: -11.97084799 | G190: 11.72042427 | H190: -11.97084799
C191: -0.7834331337 | D191: 0.9999304967 | E191: 11.10099309 | F191: -11.05745103 | G191: 11.10099309 | H191: -11.05745103
C192: -0.7708982036 | D192: 0.9962179074 | E192: 10.77987541 | F192: -10.47170673 | G192: 10.77987541 | H192: -10.47170673
C193: -0.7583632735 | D193: 0.9868728862 | E193: 10.69501377 | F193: -10.13182526 | G193: 10.69501377 | H193: -10.13182526
C194: -0.7458283433 | D194: 0.971948268 | E194: 10.82450505 | F194: -10.00005077 | G194: 10.82450505 | H194: -10.00005077
C195: -0.7332934132 | D195: =SIN(6*Q) -> 0.9515284339 | E195: =D*SIN(D195)*COS(C195)/SIN(C195+D195) -> 11.17759556 | F195: =D*SIN(C195)*SIN(D195)/SIN(C195+D195) -> -10.0695171 | G195: 11.17759556 | H195: -10.0695171
C196: =C195+dt -> -0.720758483 | D196: 0.9257288339 | E196: 11.79803437 | F196: -10.36352008 | G196: =IF(OR(ABS(E196)>xMax,ABS(F196)>yMax),G195,E196) -> 11.79803437 | H196: =IF(OR(ABS(E196)>xMax,ABS(F196)>yMax),H195,F196) -> -10.36352008
C197: -0.7082235529 | D197: 0.894695334 | E197: 12.78232847 | F197: -10.94735496 | G197: 12.78232847 | H197: -10.94735496
C198: -0.6956886228 | D198: 0.8586033921 | E198: 14.32915198 | F198: -11.96405265 | G198: 14.32915198 | H198: -11.96405265
C199: -0.6831536926 | D199: 0.8176570651 | E199: 16.87793448 | F199: -13.73679434 | G199: 16.87793448 | H199: -13.73679434
C200: -0.6706187625 | D200: 0.7720878563 | E200: 21.58254817 | F200: -17.12061118 | G200: 21.58254817 | H200: -17.12061118
C201: -0.6580838323 | D201: 0.7221534053 | E201: 32.67198786 | F201: -25.25672469 | G201: 32.67198786 | H201: -25.25672469
... 303 more rows

Sheet Defining Function
A1: Defining a Function in Excel
A3: Computers have very specific rules you must follow when defining a function. If you don't, the program will either not work at all or will work incorrectly.
A5: 1. The Variable used should be the one named in the instruction, usually x, though sometimes y, t, Q (for an angle theta),
A6: or even x and y (for a function of two variables).
A8: 2. Order of Operations: There five arithmetic operations, addition (+), subtraction (-), multiplication (*), division (/), and exponentiation or power (^). When computers see any of these operation symbols, they perform the indicated steps in a very particular order. First, the power is done. Second, products and quotients of adjacent terms is done. Third, and last, sums and differences of adjacent terms are done. So, in 10*x^3 + 5*x – 7, say with x = 2, the first pass only calculates 2^3 and ignores the multiplications and the sums and differences to calculate 2^3 = 8. The second pass looks at 10*8 + 5*2 – 7 and only does the multiplications, so it produces 80 + 10 - 7. The third pass looks at the +’s and –‘s to produce 80 + 10 – 7 = 83.
A10: 3. Parentheses If you need an operation involving more than two adjacent terms, as in Ö4^3 + 6^2, the computer would take the square root of 4 to produce 2^3 + 6^2; it would then cube the 2 and square the 6 to produce 8 + 36; and finally it would add the 8 and the 36 to get 44. If you actually wanted the square root of the entire expression, you would need to use parentheses, as in Ö(4^3 + 6^2) to tell the computer to do all the operations inside the parentheses before taking the square root. Therefore, it would calculate (4^3 + 6^2) = 64 + 36 = 100 and then take the square root of Ö100 = 10.
A12: 4. Built-In Functions Computer programs have built-in functions for most common algebraic functions. In Excel, the square root function is denoted by SQRT(…), so SQRT(100) = 10. Alternatively, you could enter it as 100^.5 or 100^(1/2); notice that parentheses are needed to have the ½ done first. The common trig functions are SIN (…), COS (…), and TAN (…), where the arguments are automatically interpreted as being in radians, not degrees. The logarithm to the base 10 is represented by LOG (…) and the logarithm with the base e, known as the natural logarithm, is LN (…). The corresponding exponential function with base e is EXP (x). If x is the variable, then each of these would be SQRT (x), SIN (x), COS (x), TAN (x), LOG (x) (for log with base 10 ), LN (x) (for log with base e ), and EXP (x).

Sheet Sheet3
